[Event "17th Memorial Lezcano Montalvo 2025"]
[Site "Gran Canaria"]
[Date "2025.04.16"]
[Round "5.32"]
[White "Reinoso Andre, Lazaro Javier"]
[Black "Rodriguez Melian, Jose Luis"]
[Result "0-1"]
[Annotator "NA RC"]
[ECO "D04"]
[WhiteElo "1796"]
[BlackElo "2029"]
[PlyCount "100"]
[EventDate "2025.04.13"]
[EventType "swiss"]
[EventCountry "ESP"]
[SourceTitle "playchess.com"]
[Source "ChessBase"]
[SourceQuality "1"]
[TimeControl "5400+30"]

1. d4 {[%emt 0:00:30]} Nf6 {[%emt 0:02:20]} 2. Nf3 {[%emt 0:00:00]} g6 {[%emt 0:00:10]} 3. e3 {[%emt 0:00:00]} Bg7 {[%emt 0:00:05]} 4. Bd3 {[%emt 0:00:00]} d5 {[%emt 0:00:04]} 5. c4 {[%emt 0:00:00]} O-O {[%emt 0:00:19]} 6. O-O {[%emt 0:00:20]} c5 {[%emt 0:00:07]} 7. dxc5 {[%emt 0:01:00]} dxc4 {[%emt 0:00:15]} 8. Bxc4 {[%emt 0:00:03]} Qa5 {[%emt 0:00:08]} 9. Qc2 {[%emt 0:00:18]} Bf5 {[%emt 0:02:15]} 10. Qc3 {[%emt 0:00:07]} Qc7 {[%emt 0:00:22]} 11. Nbd2 {[%emt 0:12:56]} Ne4 {[%emt 0:04:56]} 12. Qb4 {[%emt 0:01:41]} Nxc5 {[%emt 0:03:57]} 13. Nb3 {[%emt 0:00:42]} Ne4 {[%emt 0:02:20]} 14. Nbd4 {[%emt 0:00:18]} a5 {[%emt 0:00:44]} 15. Qb5 {[%emt 0:02:33]} Nd6 {[%emt 0:00:29]} 16. Bxf7+ {[%emt 0:06:55]} Rxf7 {[%emt 0:00:03]} 17. Qd5 {[%emt 0:00:19]} Qc4 {[%emt 0:01:23]} 18. Qxc4 {[%emt 0:00:43]} Nxc4 {[%emt 0:00:01]} 19. b3 {[%emt 0:00:20]} Nd6 {[%emt 0:00:30]} 20. Ba3 {[%emt 0:00:12]} Nc6 {[%emt 0:04:13]} 21. Ng5 {[%emt 0:02:09]} Nxd4 {[%emt 0:01:04]} 22. exd4 {[%emt 0:00:12]} Rff8 {[%emt 0:00:55]} 23. Rad1 {[%emt 0:02:33]} Bf6 {[%emt 0:00:04]} 24. Nf3 {[%emt 0:00:12]} a4 {[%emt 0:00:22]} 25. Bc5 {[%emt 0:05:16]} axb3 {[%emt 0:00:09]} 26. axb3 {[%emt 0:00:01]} Bg4 {[%emt 0:00:07]} 27. Rd3 {[%emt 0:00:40]} Rfd8 {[%emt 0:05:02]} 28. Re1 {[%emt 0:00:39]} Bxf3 {[%emt 0:00:29]} 29. gxf3 {[%emt 0:02:39]} Nf5 {[%emt 0:00:07]} 30. d5 {[%emt 0:00:16]} Kf7 {[%emt 0:00:30]} 31. Re4 {[%emt 0:00:40]} Ra1+ {[%emt 0:01:07]} 32. Kg2 {[%emt 0:00:05]} Rd7 {[%emt 0:03:54]} 33. Rb4 {[%emt 0:02:05]} Rc1 {[%emt 0:00:24]} 34. Be3 {[%emt 0:00:27]} Rc3 {[%emt 0:00:22]} 35. Rxc3 {[%emt 0:01:19]} Bxc3 {[%emt 0:00:03]} 36. Rb5 {[%emt 0:00:26]} Bd4 {[%emt 0:00:55]} 37. Bd2 {[%emt 0:01:13]} Be5 {[%emt 0:00:35]} 38. f4 {[%emt 0:00:22]} Bb8 {[%emt 0:00:44]} 39. Be3 {[%emt 0:00:08]} Nd6 {[%emt 0:01:22]} 40. Ra5 {[%emt 0:01:54]} Bc7 {[%emt 0:02:40]} 41. Ra1 {[%emt 0:01:21]} Kf6 {[%emt 0:00:25]} 42. Kf3 {[%emt 0:00:16]} Kf5 {[%emt 0:00:42]} 43. Rg1 {[%emt 0:00:31]} Nf7 {[%emt 0:00:11]} 44. Rd1 {[%emt 0:00:25]} e6 {[%emt 0:02:34]} 45. dxe6 {[%emt 0:00:35]} Rxd1 {[%emt 0:00:32]} 46. exf7 {[%emt 0:01:41]} Bd6 {[%emt 0:00:08]} 47. Ke2 {[%emt 0:00:16]} Rb1 {[%emt 0:00:11]} 48. Bd4 {[%emt 0:00:27]} Ke6 {[%emt 0:00:08]} 49. Be5 {[%emt 0:00:49]} Bf8 {[%emt 0:00:11]} 50. h4 {[%emt 0:00:55]} Rxb3 {[%emt 0:00:06]} 0-1

[Event "17th Memorial Lezcano Montalvo 2025"]
[Site "Gran Canaria"]
[Date "2025.04.16"]
[Round "5.33"]
[White "Sanchez Gonzalez, Diego"]
[Black "Sanchez Ramirez, Gustavo"]
[Result "1-0"]
[Annotator "NA RC"]
[ECO "B22"]
[WhiteElo "2025"]
[BlackElo "1780"]
[PlyCount "20"]
[EventDate "2025.04.13"]
[EventType "swiss"]
[EventCountry "ESP"]
[SourceTitle "playchess.com"]
[Source "ChessBase"]
[SourceQuality "1"]
[TimeControl "5400+30"]

1. e4 {[%emt 0:00:03]} c5 {[%emt 0:00:23]} 2. c3 {[%emt 0:00:10]} g6 {[%emt 0:01:51]} 3. d4 {[%emt 0:00:18]} cxd4 {[%emt 0:00:20]} 4. cxd4 {[%emt 0:00:23]} Bg7 {[%emt 0:00:10]} 5. Nc3 {[%emt 0:00:13]} b6 {[%emt 0:04:02]} 6. Nf3 {[%emt 0:00:21]} Bb7 {[%emt 0:00:09]} 7. Bc4 {[%emt 0:00:19]} Nc6 {[%emt 0:04:28]} 8. a3 {[%emt 0:03:34]} Nh6 {[%emt 0:05:02]} 9. Ba2 {[%emt 0:01:15]} O-O {[%emt 0:00:38]} 10. h3 {[%emt 0:00:31]} e6 {[%emt 0:03:26]} 1-0

[Event "17th Memorial Lezcano Montalvo 2025"]
[Site "Gran Canaria"]
[Date "2025.04.16"]
[Round "5.34"]
[White "Basualdo De Ornelas, Jorge"]
[Black "Torres Rebolledo, Marcos"]
[Result "1/2-1/2"]
[Annotator "NA RC"]
[ECO "B12"]
[WhiteElo "1794"]
[BlackElo "2010"]
[PlyCount "54"]
[EventDate "2025.04.13"]
[EventType "swiss"]
[EventCountry "ESP"]
[SourceTitle "playchess.com"]
[Source "ChessBase"]
[SourceQuality "1"]
[TimeControl "5400+30"]

1. e4 {[%emt 0:00:01]} c6 {[%emt 0:00:08]} 2. d4 {[%emt 0:00:05]} d5 {[%emt 0:00:06]} 3. e5 {[%emt 0:00:04]} c5 {[%emt 0:00:07]} 4. dxc5 {[%emt 0:00:08]} e6 {[%emt 0:00:30]} 5. c3 {[%emt 0:00:06]} Nd7 {[%emt 0:00:08]} 6. Nf3 {[%emt 0:00:27]} Bxc5 {[%emt 0:00:11]} 7. Nbd2 {[%emt 0:00:19]} Qb6 {[%emt 0:00:33]} 8. Qe2 {[%emt 0:01:33]} Qa6 {[%emt 0:08:05]} 9. Qd1 {[%emt 0:06:28]} Qb6 {[%emt 0:00:43]} 10. Qe2 {[%emt 0:00:08]} a5 {[%emt 0:00:07]} 11. Nb3 {[%emt 0:01:25]} Ne7 {[%emt 0:01:25]} 12. Nxc5 {[%emt 0:02:32]} Nxc5 {[%emt 0:01:55]} 13. Be3 {[%emt 0:06:53]} Nf5 {[%emt 0:09:44]} 14. Qb5+ {[%emt 0:04:59]} Qxb5 {[%emt 0:00:19]} 15. Bxb5+ {[%emt 0:00:06]} Bd7 {[%emt 0:02:06]} 16. Bxc5 {[%emt 0:02:03]} Bxb5 {[%emt 0:00:13]} 17. Nd4 {[%emt 0:00:48]} Nxd4 {[%emt 0:03:09]} 18. Bxd4 {[%emt 0:00:16]} Kd7 {[%emt 0:00:24]} 19. Kd2 {[%emt 0:01:43]} Rhc8 {[%emt 0:01:53]} 20. h4 {[%emt 0:02:08]} h5 {[%emt 0:02:24]} 21. Rh3 {[%emt 0:02:38]} Ba6 {[%emt 0:03:50]} 22. Rf3 {[%emt 0:15:26]} Ke7 {[%emt 0:01:34]} 23. Rg1 {[%emt 0:00:04]} Rh8 {[%emt 0:17:27]} 24. Bc5+ {[%emt 0:01:44]} Ke8 {[%emt 0:00:08]} 25. g4 {[%emt 0:01:58]} g6 {[%emt 0:01:35]} 26. g5 {[%emt 0:12:02]} Rc8 {[%emt 0:01:45]} 27. b4 {[%emt 0:00:04]} a4 {[%emt 0:01:34]} 1/2-1/2

[Event "17th Memorial Lezcano Montalvo 2025"]
[Site "Gran Canaria"]
[Date "2025.04.16"]
[Round "5.35"]
[White "Bolivar Castro, Alejandro"]
[Black "Rossello Padron, Carlos"]
[Result "1-0"]
[Annotator "NA RC"]
[ECO "A45"]
[WhiteElo "2006"]
[BlackElo "1776"]
[PlyCount "53"]
[EventDate "2025.04.13"]
[EventType "swiss"]
[EventCountry "ESP"]
[SourceTitle "playchess.com"]
[Source "ChessBase"]
[SourceQuality "1"]
[TimeControl "5400+30"]

1. d4 {[%emt 0:00:14]} Nf6 {[%emt 0:00:24]} 2. Bf4 {[%emt 0:00:05]} g6 {[%emt 0:01:03]} 3. Nc3 {[%emt 0:00:05]} d5 {[%emt 0:00:41]} 4. e3 {[%emt 0:00:08]} Bg7 {[%emt 0:00:57]} 5. h4 {[%emt 0:00:06]} Nbd7 {[%emt 0:03:43]} 6. Nb5 {[%emt 0:06:44]} e5 {[%emt 0:00:48]} 7. dxe5 {[%emt 0:01:02]} Nh5 {[%emt 0:06:39]} 8. Qxd5 {[%emt 0:23:11]} O-O {[%emt 0:00:20]} 9. Bg5 {[%emt 0:11:21]} c6 {[%emt 0:02:19]} 10. Bxd8 {[%emt 0:00:32]} cxd5 {[%emt 0:00:16]} 11. Be7 {[%emt 0:00:29]} Re8 {[%emt 0:00:57]} 12. Bd6 {[%emt 0:04:04]} Nxe5 {[%emt 0:00:30]} 13. Nc7 {[%emt 0:01:27]} Rd8 14. Bxe5 {[%emt 0:08:25]} Bxe5 {[%emt 0:03:59]} 15. Nxa8 {[%emt 0:00:03]} Be6 {[%emt 0:01:34]} 16. O-O-O {[%emt 0:02:02]} Rxa8 {[%emt 0:00:33]} 17. Nf3 {[%emt 0:00:14]} Bf6 {[%emt 0:02:18]} 18. Be2 {[%emt 0:00:32]} Be7 {[%emt 0:03:36]} 19. Nd4 {[%emt 0:00:16]} Nf6 {[%emt 0:00:22]} 20. Bf3 {[%emt 0:00:32]} Rc8 {[%emt 0:01:38]} 21. c3 {[%emt 0:00:27]} Bd7 {[%emt 0:01:31]} 22. Ne2 {[%emt 0:01:38]} Bc6 {[%emt 0:01:50]} 23. Nf4 {[%emt 0:00:11]} Ne4 {[%emt 0:01:52]} 24. Nxd5 {[%emt 0:01:00]} Bxd5 {[%emt 0:00:27]} 25. Rxd5 {[%emt 0:00:21]} Nxf2 {[%emt 0:01:04]} 26. Rf1 {[%emt 0:00:33]} Bxh4 {[%emt 0:00:16]} 27. Rd2 {[%emt 0:00:38]} 1-0

[Event "17th Memorial Lezcano Montalvo 2025"]
[Site "Gran Canaria"]
[Date "2025.04.16"]
[Round "5.36"]
[White "Velasquez Vargas, Sebastian"]
[Black "Schmitz, Andreas Arnold"]
[Result "0-1"]
[Annotator "NA RC"]
[ECO "C02"]
[WhiteElo "1777"]
[BlackElo "1967"]
[PlyCount "118"]
[EventDate "2025.04.13"]
[EventType "swiss"]
[EventCountry "ESP"]
[SourceTitle "playchess.com"]
[Source "ChessBase"]
[SourceQuality "1"]
[TimeControl "5400+30"]

1. e4 {[%emt 0:00:11]} e6 {[%emt 0:00:06]} 2. d4 {[%emt 0:00:07]} d5 {[%emt 0:00:04]} 3. e5 {[%emt 0:00:10]} c5 {[%emt 0:00:05]} 4. c3 {[%emt 0:00:10]} Nc6 {[%emt 0:00:31]} 5. Nf3 {[%emt 0:00:12]} cxd4 {[%emt 0:01:56]} 6. cxd4 {[%emt 0:00:15]} f6 {[%emt 0:01:15]} 7. Bb5 {[%emt 0:00:16]} Bd7 {[%emt 0:05:35]} 8. Bxc6 {[%emt 0:00:28]} bxc6 {[%emt 0:00:54]} 9. Nc3 {[%emt 0:00:30]} c5 {[%emt 0:01:08]} 10. Be3 {[%emt 0:01:57]} cxd4 {[%emt 0:06:32]} 11. Bxd4 {[%emt 0:00:15]} f5 {[%emt 0:00:45]} 12. O-O {[%emt 0:01:10]} Ne7 {[%emt 0:05:18]} 13. Bc5 {[%emt 0:03:04]} h6 {[%emt 0:03:47]} 14. Nh4 {[%emt 0:00:52]} h5 {[%emt 0:05:33]} 15. Bxe7 {[%emt 0:01:25]} Bxe7 {[%emt 0:00:14]} 16. Ng6 {[%emt 0:01:01]} Rh6 {[%emt 0:01:40]} 17. Nxe7 {[%emt 0:00:18]} Qxe7 {[%emt 0:01:11]} 18. Qe2 {[%emt 0:02:16]} g5 {[%emt 0:11:40]} 19. Nb5 {[%emt 0:00:28]} Bxb5 {[%emt 0:02:06]} 20. Qxb5+ {[%emt 0:00:08]} Qd7 {[%emt 0:00:15]} 21. Qxd7+ {[%emt 0:00:29]} Kxd7 {[%emt 0:00:06]} 22. Rfc1 {[%emt 0:00:22]} Rhh8 {[%emt 0:02:40]} 23. Kf1 {[%emt 0:00:20]} Rab8 {[%emt 0:00:46]} 24. b3 {[%emt 0:00:21]} Rb4 {[%emt 0:01:44]} 25. f3 {[%emt 0:00:32]} Rc8 {[%emt 0:06:27]} 26. Rxc8 {[%emt 0:00:09]} Kxc8 {[%emt 0:00:05]} 27. Rc1+ {[%emt 0:00:06]} Kb7 {[%emt 0:00:51]} 28. Ke2 {[%emt 0:00:20]} g4 {[%emt 0:05:34]} 29. Ke3 {[%emt 0:00:44]} a5 {[%emt 0:02:08]} 30. Kd3 {[%emt 0:02:34]} a4 {[%emt 0:05:23]} 31. Kc3 {[%emt 0:00:13]} Rf4 {[%emt 0:00:47]} 32. Rf1 {[%emt 0:01:16]} Kc6 {[%emt 0:02:58]} 33. a3 {[%emt 0:08:56]} axb3 {[%emt 0:05:54]} 34. Kxb3 {[%emt 0:00:17]} Kb5 {[%emt 0:00:36]} 35. Rf2 {[%emt 0:02:04]} gxf3 {[%emt 0:03:03]} 36. gxf3 {[%emt 0:02:28]} h4 {[%emt 0:01:22]} 37. h3 {[%emt 0:00:50]} Rd4 {[%emt 0:04:22]} 38. Kc3 {[%emt 0:04:23]} Rd1 {[%emt 0:03:01]} 39. f4 {[%emt 0:03:48]} Ka4 {[%emt 0:01:47]} 40. Rf3 {[%emt 0:00:26]} Rg1 {[%emt 0:00:22]} 41. Kb2 {[%emt 0:03:30]} Rg3 {[%emt 0:00:56]} 42. Rf2 {[%emt 0:00:20]} Rb3+ {[%emt 0:01:35]} 43. Kc2 {[%emt 0:00:26]} Rxa3 {[%emt 0:00:22]} 44. Rf1 {[%emt 0:00:19]} Rxh3 {[%emt 0:00:11]} 45. Ra1+ {[%emt 0:00:09]} Kb5 {[%emt 0:01:36]} 46. Rf1 {[%emt 0:00:11]} Kc4 {[%emt 0:00:11]} 47. Rf2 {[%emt 0:00:29]} Kd4 {[%emt 0:00:13]} 48. Kd2 {[%emt 0:00:34]} Ke4 {[%emt 0:00:37]} 49. Ke2 {[%emt 0:01:11]} Ra3 {[%emt 0:00:37]} 50. Kf1 {[%emt 0:00:05]} Rf3 {[%emt 0:00:09]} 51. Kg2 {[%emt 0:00:55]} Rxf2+ {[%emt 0:00:18]} 52. Kxf2 {[%emt 0:00:03]} Kxf4 {[%emt 0:00:08]} 53. Kg1 {[%emt 0:00:06]} d4 {[%emt 0:00:25]} 54. Kg2 {[%emt 0:00:14]} d3 {[%emt 0:00:16]} 55. Kg1 {[%emt 0:00:03]} d2 {[%emt 0:00:12]} 56. Kh2 {[%emt 0:00:09]} d1=Q {[%emt 0:00:24]} 57. Kg2 {[%emt 0:00:09]} h3+ {[%emt 0:00:57]} 58. Kh2 {[%emt 0:00:07]} Qg4 {[%emt 0:00:47]} 59. Kh1 {[%emt 0:00:04]} Qg2# {[%emt 0:00:09]} 0-1

[Event "17th Memorial Lezcano Montalvo 2025"]
[Site "Gran Canaria"]
[Date "2025.04.16"]
[Round "5.37"]
[White "Cappelle, Cedric"]
[Black "Rivero Tacoronte, Gabriel"]
[Result "0-1"]
[Annotator "NA RC"]
[ECO "D11"]
[WhiteElo "1774"]
[BlackElo "1963"]
[PlyCount "74"]
[EventDate "2025.04.13"]
[EventType "swiss"]
[EventCountry "ESP"]
[SourceTitle "playchess.com"]
[Source "ChessBase"]
[SourceQuality "1"]
[TimeControl "5400+30"]

1. d4 {[%emt 0:05:45]} Nf6 {[%emt 0:00:05]} 2. Nf3 {[%emt 0:00:23]} d5 {[%emt 0:00:07]} 3. g3 {[%emt 0:01:03]} Bf5 {[%emt 0:00:50]} 4. c4 {[%emt 0:00:19]} c6 {[%emt 0:00:06]} 5. Nc3 {[%emt 0:01:47]} e6 {[%emt 0:00:48]} 6. Qb3 {[%emt 0:00:24]} Qc8 {[%emt 0:01:43]} 7. Nh4 {[%emt 0:00:43]} Bg6 {[%emt 0:03:25]} 8. Nxg6 {[%emt 0:00:24]} hxg6 {[%emt 0:00:05]} 9. Bg2 {[%emt 0:01:18]} Nbd7 {[%emt 0:01:43]} 10. O-O {[%emt 0:02:08]} Be7 {[%emt 0:02:24]} 11. Bf4 {[%emt 0:05:55]} O-O {[%emt 0:01:09]} 12. Rac1 {[%emt 0:05:48]} dxc4 {[%emt 0:23:52]} 13. Qxc4 {[%emt 0:00:08]} Nb6 {[%emt 0:00:03]} 14. Qb3 {[%emt 0:02:59]} Nfd5 {[%emt 0:05:34]} 15. Bd2 {[%emt 0:01:35]} Bf6 {[%emt 0:05:44]} 16. e4 {[%emt 0:03:05]} Nc7 {[%emt 0:00:19]} 17. Be3 {[%emt 0:03:45]} Rd8 {[%emt 0:03:44]} 18. Rfd1 {[%emt 0:01:23]} Na6 {[%emt 0:07:51]} 19. e5 {[%emt 0:09:18]} Be7 {[%emt 0:00:34]} 20. d5 {[%emt 0:02:56]} Nxd5 {[%emt 0:04:02]} 21. Nxd5 {[%emt 0:00:17]} exd5 {[%emt 0:00:08]} 22. Bxd5 {[%emt 0:00:16]} Qf5 {[%emt 0:01:22]} 23. Qxb7 {[%emt 0:09:34]} cxd5 {[%emt 0:00:05]} 24. Qxe7 {[%emt 0:00:45]} Rd7 {[%emt 0:00:41]} 25. Qg5 {[%emt 0:02:12]} Qe6 {[%emt 0:01:11]} 26. Qf4 {[%emt 0:07:31]} Rad8 {[%emt 0:04:01]} 27. Bd4 {[%emt 0:02:22]} Nb4 {[%emt 0:02:28]} 28. a3 {[%emt 0:08:36]} Nc6 {[%emt 0:00:08]} 29. Rc5 {[%emt 0:00:25]} Re8 {[%emt 0:02:24]} 30. Qf3 {[%emt 0:08:21]} Nxe5 31. Bxe5 {[%emt 0:01:21]} Qxe5 {[%emt 0:06:02]} 32. Rcxd5 {[%emt 0:02:09]} Rxd5 {[%emt 0:00:01]} 33. Qxd5 {[%emt 0:00:16]} Qxb2 {[%emt 0:00:14]} 34. Qd7 {[%emt 0:00:24]} Qe2 {[%emt 0:00:41]} 35. Qd3 {[%emt 0:01:32]} Qh5 {[%emt 0:09:39]} 36. Qd5 {[%emt 0:01:47]} Re1+ {[%emt 0:00:18]} 37. Kg2 {[%emt 0:01:25]} Rxd1 {[%emt 0:00:20]} 0-1

[Event "17th Memorial Lezcano Montalvo 2025"]
[Site "Gran Canaria"]
[Date "2025.04.16"]
[Round "5.38"]
[White "Ramirez Maillo, Juan Adonay"]
[Black "Guerra Aleman, Marcial"]
[Result "1-0"]
[Annotator "RC"]
[ECO "B12"]
[WhiteElo "1956"]
[BlackElo "1766"]
[PlyCount "93"]
[EventDate "2025.04.13"]
[EventType "swiss"]
[EventCountry "ESP"]
[SourceTitle "playchess.com"]
[Source "ChessBase"]
[SourceQuality "1"]
[TimeControl "5400+30"]

1. e4 {[%emt 0:01:10]} c6 {[%emt 0:00:20]} 2. d4 {[%emt 0:00:14]} d5 {[%emt 0:00:07]} 3. e5 {[%emt 0:00:17]} c5 {[%emt 0:00:20]} 4. dxc5 {[%emt 0:00:16]} Nc6 {[%emt 0:01:28]} 5. f4 {[%emt 0:01:26]} Bf5 {[%emt 0:00:14]} 6. Nf3 {[%emt 0:01:19]} e6 {[%emt 0:00:42]} 7. Be3 {[%emt 0:01:21]} Qa5+ {[%emt 0:06:14]} 8. c3 {[%emt 0:03:41]} Qc7 {[%emt 0:18:52]} 9. b4 {[%emt 0:00:39]} a6 {[%emt 0:00:21]} 10. Nbd2 {[%emt 0:01:54]} f6 {[%emt 0:03:44]} 11. Qa4 {[%emt 0:12:44]} Nge7 {[%emt 0:05:23]} 12. b5 {[%emt 0:07:43]} Qa5 {[%emt 0:01:14]} 13. Qxa5 {[%emt 0:04:46]} Nxa5 {[%emt 0:01:26]} 14. bxa6 {[%emt 0:04:00]} bxa6 {[%emt 0:00:24]} 15. Nb3 {[%emt 0:04:00]} Nc4 {[%emt 0:03:26]} 16. Bxc4 {[%emt 0:01:49]} dxc4 {[%emt 0:00:06]} 17. Na5 {[%emt 0:00:29]} Nd5 {[%emt 0:00:14]} 18. Nxc4 {[%emt 0:06:47]} Bd3 {[%emt 0:05:50]} 19. Nb6 {[%emt 0:03:41]} Nxe3 {[%emt 0:03:37]} 20. Nxa8 {[%emt 0:00:15]} Bxc5 {[%emt 0:01:06]} 21. Kd2 {[%emt 0:05:12]} Bc4 {[%emt 0:02:56]} 22. Nd4 {[%emt 0:02:44]} Nd5 {[%emt 0:26:42]} 23. Rhb1 {[%emt 0:08:02]} O-O {[%emt 0:00:43]} 24. Nxe6 {[%emt 0:01:32]} Be3+ {[%emt 0:00:17]} 25. Kc2 {[%emt 0:01:43]} Rxa8 {[%emt 0:00:20]} 26. Rb7 {[%emt 0:02:30]} Re8 {[%emt 0:09:51]} 27. Nxg7 {[%emt 0:00:50]} Re7 {[%emt 0:00:16]} 28. Rxe7 {[%emt 0:00:08]} Nxe7 {[%emt 0:00:02]} 29. exf6 {[%emt 0:00:14]} Nd5 {[%emt 0:00:35]} 30. g3 {[%emt 0:08:19]} Nxf6 {[%emt 0:00:42]} 31. Nf5 {[%emt 0:00:12]} Bc5 {[%emt 0:00:21]} 32. a4 {[%emt 0:00:46]} Ng4 {[%emt 0:00:50]} 33. Re1 {[%emt 0:00:49]} Nxh2 {[%emt 0:02:06]} 34. Re8+ {[%emt 0:00:12]} Bf8 {[%emt 0:00:27]} 35. Nd6 {[%emt 0:01:50]} Bd5 {[%emt 0:00:35]} 36. c4 {[%emt 0:00:47]} Bc6 {[%emt 0:00:14]} 37. Rc8 {[%emt 0:00:24]} Bxa4+ {[%emt 0:00:11]} 38. Kd3 {[%emt 0:00:55]} Kg7 {[%emt 0:00:16]} 39. Nf5+ {[%emt 0:00:17]} Kf7 {[%emt 0:00:30]} 40. c5 {[%emt 0:00:56]} Nf3 {[%emt 0:03:40]} 41. c6 {[%emt 0:00:38]} Bb5+ {[%emt 0:00:33]} 42. Ke3 {[%emt 0:00:33]} Ne1 {[%emt 0:00:29]} 43. Nd4 {[%emt 0:00:34]} Bc5 {[%emt 0:01:15]} 44. c7 {[%emt 0:02:00]} Bd7 {[%emt 0:00:31]} 45. Rd8 {[%emt 0:00:42]} Nc2+ {[%emt 0:00:51]} 46. Kd2 {[%emt 0:00:33]} Ke7 {[%emt 0:00:42]} 47. Nc6+ {[%emt 0:01:14]} 1-0

[Event "17th Memorial Lezcano Montalvo 2025"]
[Site "Gran Canaria"]
[Date "2025.04.16"]
[Round "5.39"]
[White "Julien Casteleiro, Ariel"]
[Black "Perez Rosales, Pedro"]
[Result "0-1"]
[Annotator "NA RC"]
[ECO "A41"]
[WhiteElo "1761"]
[BlackElo "1942"]
[PlyCount "61"]
[EventDate "2025.04.13"]
[EventType "swiss"]
[EventCountry "ESP"]
[SourceTitle "playchess.com"]
[Source "ChessBase"]
[SourceQuality "1"]
[TimeControl "5400+30"]

1. d4 {[%emt 0:00:42]} d6 {[%emt 0:02:24]} 2. Bf4 {[%emt 0:00:41]} Nd7 {[%emt 0:02:07]} 3. e3 {[%emt 0:01:11]} e5 {[%emt 0:00:59]} 4. Bg3 {[%emt 0:01:21]} g6 {[%emt 0:03:43]} 5. Nf3 {[%emt 0:00:24]} Bg7 {[%emt 0:00:12]} 6. c4 {[%emt 0:00:24]} Nh6 {[%emt 0:00:36]} 7. h3 {[%emt 0:01:20]} O-O {[%emt 0:00:10]} 8. Be2 {[%emt 0:00:35]} Nf5 {[%emt 0:05:23]} 9. Bh2 {[%emt 0:01:41]} exd4 {[%emt 0:00:51]} 10. exd4 {[%emt 0:01:39]} Qf6 {[%emt 0:00:23]} 11. Nc3 {[%emt 0:05:01]} Nxd4 {[%emt 0:04:29]} 12. Qxd4 {[%emt 0:04:35]} Qxd4 {[%emt 0:00:10]} 13. Nxd4 {[%emt 0:00:21]} Bxd4 {[%emt 0:00:06]} 14. Nb5 {[%emt 0:05:24]} Bb6 {[%emt 0:01:32]} 15. O-O {[%emt 0:02:10]} Ne5 {[%emt 0:04:22]} 16. c5 {[%emt 0:07:51]} Bxc5 {[%emt 0:03:14]} 17. Nxc7 {[%emt 0:00:32]} Rb8 {[%emt 0:00:21]} 18. a3 {[%emt 0:02:25]} Bd7 {[%emt 0:17:51]} 19. b4 {[%emt 0:01:22]} Bb6 {[%emt 0:00:57]} 20. Nd5 {[%emt 0:04:22]} Bd8 {[%emt 0:00:20]} 21. f4 {[%emt 0:02:39]} Nc6 {[%emt 0:00:38]} 22. f5 {[%emt 0:12:59]} Ne5 {[%emt 0:00:55]} 23. f6 {[%emt 0:03:02]} Re8 {[%emt 0:05:10]} 24. Rad1 {[%emt 0:12:19]} Ba4 {[%emt 0:08:53]} 25. Rd2 {[%emt 0:01:24]} Rc8 {[%emt 0:00:15]} 26. Bd1 {[%emt 0:04:47]} Bb5 {[%emt 0:00:34]} 27. Rf4 {[%emt 0:22:49]} Rc1 {[%emt 0:07:28]} 28. Re4 {[%emt 0:00:00]} Nc4 {[%emt 0:10:28]} 29. Ne7+ {[%emt 0:00:00]} Bxe7 {[%emt 0:00:17]} 30. Rdd4 {[%emt 0:00:00]} Bxf6 {[%emt 0:01:04]} 31. Rd3 {[%emt 0:02:00]} 0-1